{"text_format":"1","workbook":"xlsx","n_sheets":2,"sheets":["Tilauslomake","Order form"],"not_rendered":{"charts":0,"images":1,"macros":1,"external_links":0,"defined_names":2,"comments":0,"pivot_tables":0},"unopened":[],"bounds":{"document_bytes":16777216,"sheet_cells":100000,"rows_first":2000,"rows_last":500,"rows_between":2000,"halvings":0,"cell_chars":16384,"cell_head_chars":4096},"cells_cut":0,"cells_raw":0,"read":"whole","date_system":"1900"}

{"sheet":"Tilauslomake","index":0,"n_rows":57,"n_cols":15,"rows_kept":57,"cut":false,"hidden":false,"merged":[[16,1,16,9],[5,1,5,4],[8,1,8,9],[9,1,9,9],[10,1,10,9],[12,1,12,9],[5,5,5,7],[7,0,7,14],[6,5,6,7],[6,8,6,14],[11,1,11,9],[6,0,6,4],[22,1,22,9],[17,1,17,9],[29,1,29,9],[26,1,26,9],[27,1,27,9],[18,1,18,9],[23,1,23,9],[24,1,24,9],[25,1,25,9],[19,1,19,9],[21,1,21,9],[32,1,32,9],[33,1,33,9],[30,1,30,9],[48,1,48,9],[49,1,49,9],[44,1,44,9],[34,1,34,9],[47,1,47,9],[35,1,35,9],[45,1,45,9],[38,1,38,9],[36,1,36,9],[37,1,37,9],[39,1,39,9],[46,1,46,9],[31,1,31,9],[55,13,55,14],[56,13,56,14],[50,0,50,14],[55,8,55,12],[56,8,56,12],[54,8,54,12],[53,0,57,6],[52,0,52,6],[51,0,51,14],[54,13,54,14],[1,7,1,14],[1,5,1,6],[5,8,5,14],[4,8,4,14],[4,5,4,7],[2,5,2,6],[2,7,2,8],[2,10,2,14],[3,8,3,14],[3,5,3,7]]}
[null,null,null,null,null,"KOKOUS- JA EDUSTUSTARJOILULOMAKE ANTELL ASEMA",null,null,null,null,"  asema.tilaukset@antell.fi"]
[null,null,null,null,null,"Tilaaja:"]
[null,null,null,null,null,"Puhelin:",null,null,null,"Sähköpostiosoite:"]
[null,null,null,null,null,"Laksun viite:"]
[null,null,null,null,null,"Tilaisuuden pvm ja klo."]
[null,null,null,null,null,"Kokoustila:"]
["Tarjoukset ja tiedustelut:asema.tilaukset@antell.fi",null,null,null,null,"Henkilömäärä:"]
["Laskutustiedot:"]
["KLO","JUOMAT",null,null,null,null,null,null,null,null,"KPL","Á-HINTA (alv 0)","Á-HINTA (alv 14)","YHT € (alv 0)","YHT € (alv 14)"]
[null,"Kahvi/ tee (sisältää kaksi kupillista)",null,null,null,null,null,null,null,null,null,{"$f":"0.86*M10","v":4.1280000000000001},4.8,{"$f":"K10*L10","v":0},{"$f":"K10*M10","v":0}]
[null,"Virvoke 1 kpl",null,null,null,null,null,null,null,null,null,{"$f":"0.86*M11","v":4.0419999999999998},4.7,{"$f":"K11*L11","v":0},{"$f":"K11*M11","v":0}]
[null,"Appelsiinituoremehu 1l",null,null,null,null,null,null,null,null,null,8.6,10,0,0]
[null,"Talon smoothie",null,null,null,null,null,null,null,null,null,6.1920000000000002,7.2,0,0]
[null,"Kokousvesi"]
[]
[]
[]
["KLO","SUOLAISET TUOTTEET",null,null,null,null,null,null,null,null,"KPL","Á-HINTA (alv 0)","Á-HINTA (alv 14)","€","€"]
[null,"Pieni sämpylä kinkulla ",null,null,null,null,null,null,null,null,null,{"$f":"0.86*M19","v":5.2459999999999996},6.1,{"$f":"K19*L19","v":0},{"$f":"K19*M19","v":0}]
[null,"Pieni sämpylä juustolla ",null,null,null,null,null,null,null,null,null,5.2459999999999996,6.1,0,0]
[null,"Reissumies kinkulla",null,null,null,null,null,null,null,null,null,6.45,7.5,0,0]
[null,"Reissumies juustolla ",null,null,null,null,null,null,null,null,null,6.45,7.5,0,0]
[null,"Saaristolaisleipä lohitäytteellä",null,null,null,null,null,null,null,null,null,6.5359999999999996,7.6,0,0]
[null,"Saaristolaisleipä briejuustolla ja lakkahillolla",null,null,null,null,null,null,null,null,null,6.5359999999999996,7.6,0,0]
[null,"Kana-tuorejuusto wrap",null,null,null,null,null,null,null,null,null,6.88,8,0,0]
[null,"Itte tehty suolainen kasvispiirakka",null,null,null,null,null,null,null,null,null,6.88,8,0,0]
[null,"BusinessOulu sopimustuote: 1 kuppia kahvia ja pieni suolainen",null,null,null,null,null,null,null,null,null,3.2679999999999998,3.8,0,0]
[]
[null,"Buffet aamiainen ravintolasalissa",null,null,null,null,null,null,null,null,null,9.0299999999999994,10.5,0,0]
[null,"Lounas buffet ravintolasalissa",null,null,null,null,null,null,null,null,null,11.093999999999999,12.9,0,0]
["KLO","MAKEAT TUOTTEET",null,null,null,null,null,null,null,null,"KPL","Á-HINTA (alv 0)","Á-HINTA (alv 14)","€","€"]
[null,"Talon pulla ",null,null,null,null,null,null,null,null,null,{"$f":"0.86*M32","v":4.3859999999999992},5.0999999999999996,{"$f":"K32*L32","v":0},{"$f":"K32*M32","v":0}]
[null,"Päivän leivos",null,null,null,null,null,null,null,null,null,{"$f":"0.86*M33","v":6.9659999999999993},8.1,0,{"$f":"K33*M33","v":0}]
[null,"Mini juustokakku lakkahillolla",null,null,null,null,null,null,null,null,null,{"$f":"0.86*M34","v":3.87},4.5,0,{"$f":"K34*M34","v":0}]
[null,"Mini suklaafondant ",null,null,null,null,null,null,null,null,null,3.44,4,0,0]
[null,"Suklaakonvehti 4kpl",null,null,null,null,null,null,null,null,null,2.15,2.5,0,0]
[null,"Pilkotut hedelmät ",null,null,null,null,null,null,null,null,null,6.45,7.5,0,0]
[null,"Itte tehty tuorepuuro",null,null,null,null,null,null,null,null,null,4.3,5,0,0]
[null,"BusinessOulu sopimustuote 1 kuppi kahvia ja pieni makea",null,null,null,null,null,null,null,null,null,2.9239999999999999,3.4,0,0]
[]
[]
[]
[]
[null,"Itte tehdyt kakut, kysy tarjous"]
["KLO","MUUT TUOTTEET JA TOIMITUKSET",null,null,null,null,null,null,null,null,"KPL","Á-HINTA (alv 0)","Á-HINTA (alv 14)","€","€"]
[null,"Pöytäliina kpl sis. alv (tilaus 2 viikkoa ennen tapahtumaa)",null,null,null,null,null,null,null,null,null,null,20,{"$f":"K46*L46","v":0},{"$f":"K46*M46","v":0}]
[null,"Pikatoimituslisä sis. alv. (edellisenä päivänä annettuhin tilauksiin)",null,null,null,null,null,null,null,null,null,null,25,0,0]
[null,"Työtuntiveloitus ravintolan aukiolojen ulkopuolella sis. alv.",null,null,null,null,null,null,null,null,null,null,60,0,0]
[]
[]
["ERITYISRUOKAVALIOT JA MUUTA HUOMIOITAVAA"]
[]
["LISÄTIETOJA:"]
["ILMOITATTEHAN HYVISSÄ AJOIN, MIKÄLI OLETTE TULOSSA RUOKAILEMAAN RAVINTOLASALIIN. ILMOITATTEHAN MYÖS MAHDOLLISET ALLERGEENIT. TILAATHAN YLI 20 HENKILÖN TARJOILUT VIIMEISTÄÄN VIIKKOA ENNEN TILAISUUTTA.  ",null,null,null,null,null,null,null,null,null,null,null,"YHTEENSÄ:"]
[null,null,null,null,null,null,null,null,"NETTO (alv 0)",null,null,null,null,{"$f":"SUM(N10:N50)","v":0}]
[null,null,null,null,null,null,null,null,"Arvonlisäveron määrä (14%)",null,null,null,null,{"$f":"N57-N55","v":0}]
[null,null,null,null,null,null,null,null,"BRUTTO (sis alv 14%) €",null,null,null,null,{"$f":"SUM(O10:O50)","v":0}]

{"sheet":"Order form","index":1,"n_rows":60,"n_cols":17,"rows_kept":60,"cut":false,"hidden":false,"merged":[[59,10,59,14],[59,15,59,16],[51,3,51,11],[52,3,52,11],[53,0,53,16],[54,0,54,16],[55,0,55,8],[56,0,60,8],[57,10,57,14],[57,15,57,16],[58,10,58,14],[58,15,58,16],[50,3,50,11],[35,3,35,11],[36,3,36,11],[37,3,37,11],[38,3,38,11],[39,3,39,11],[40,3,40,11],[41,3,41,11],[42,3,42,11],[47,3,47,11],[48,3,48,11],[49,3,49,11],[34,3,34,11],[23,3,23,11],[24,3,24,11],[25,3,25,11],[26,3,26,11],[27,3,27,11],[28,3,28,11],[29,3,29,11],[30,3,30,11],[31,3,31,11],[32,3,32,11],[33,3,33,11],[22,3,22,11],[12,3,12,11],[13,3,13,11],[14,3,14,7],[14,8,14,11],[15,3,15,11],[16,3,16,11],[17,3,17,11],[18,3,18,11],[19,3,19,11],[20,3,20,11],[21,3,21,11],[7,0,7,1],[7,2,7,16],[8,3,8,11],[9,3,9,11],[10,3,10,11],[11,3,11,11],[4,7,4,9],[4,10,4,16],[5,3,5,6],[5,7,5,9],[5,10,5,16],[6,0,6,1],[6,2,6,6],[6,7,6,9],[6,10,6,16],[1,7,1,8],[1,9,1,16],[2,7,2,8],[2,9,2,10],[2,12,2,16],[3,7,3,9],[3,10,3,16]]}
[null,null,null,null,null,null,null,"ORDER FORM FOR MEETING AND EVENT CATERING",null,null,null,null," Antell Asema"]
[null,null,null,null,null,null,null,"Host:"]
[null,null,null,null,null,null,null,"Phone number:",null,null,null,"E-mail addres:"]
[null,null,null,null,null,null,null,"Invoice reference:"]
[null,null,null,null,null,null,null,"Event name:"]
[null,null,null,null,null,null,null,"Meeting room:"]
["Even date:",null,null,null,null,null,null,"Number of persons:"]
["Invoice address:"]
["TIME","TIME","TIME","DRINKS",null,null,null,null,null,null,null,null,"PCS","PRICE/PC (VAT 0)","PRICE/PC (VAT 14)","SUM € (VAT 0)","SUM € (VAT 14)"]
[null,null,null,"Coffee/brewed tea (2cup/portion)",null,null,null,null,null,null,null,null,null,{"$f":"0.86*O10","v":4.1280000000000001},4.8,{"$f":"M10*N10","v":0},{"$f":"M10*O10","v":0}]
[null,null,null,"Soft drinks assortment ",null,null,null,null,null,null,null,null,null,{"$f":"0.86*O11","v":4.0419999999999998},4.7,{"$f":"M11*N11","v":0},{"$f":"M11*O11","v":0}]
[null,null,null,"Freshly squeezed liter of juice",null,null,null,null,null,null,null,null,null,12.9,15,0,0]
[null,null,null,null,null,null,null,null,null,null,null,null,null,0,0,0,0]
[null,null,null,null,null,null,null,null,null,null,null,null,null,0,0,0,0]
["TIME","TIME","TIME","SEASON´S BEST",null,null,null,null,null,null,null,null,"PCS","PRICE/PC (VAT 0)","PRICE/PC (VAT 14)","€","€"]
[null,null,null,null,null,null,null,null,null,null,null,null,null,{"$f":"0.86*O16","v":3.87},4.5,{"$f":"M16*N16","v":0},{"$f":"M16*O16","v":0}]
[null,null,null,null,null,null,null,null,null,null,null,null,null,3.44,4,0,0]
[null,null,null,null,null,null,null,null,null,null,null,null,null,0,null,0,0]
[null,null,null,null,null,null,null,null,null,null,null,null,null,0,0,0,0]
[null,null,null,null,null,null,null,null,null,null,null,null,null,0,0,0,0]
[null,null,null,null,null,null,null,null,null,null,null,null,null,0,0,0,0]
["TIME","TIME","TIME","SAVORY PRODUCTS",null,null,null,null,null,null,null,null,"PCS","PRICE/PC (VAT 0)","PRICE/PC (VAT 14)","€","€"]
[null,null,null,null,null,null,null,null,null,null,null,null,null,{"$f":"0.86*O23","v":2.58},3,{"$f":"M23*N23","v":0},{"$f":"M23*O23","v":0}]
[null,null,null,null,null,null,null,null,null,null,null,null,null,3.01,3.5,0,0]
[null,null,null,null,null,null,null,null,null,null,null,null,null,5.59,6.5,0,0]
[null,null,null,null,null,null,null,null,null,null,null,null,null,6.02,7,0,0]
[null,null,null,null,null,null,null,null,null,null,null,null,null,3.5259999999999998,4.0999999999999996,0,0]
[null,null,null,null,null,null,null,null,null,null,null,null,null,3.9559999999999995,4.5999999999999996,0,0]
[null,null,null,null,null,null,null,null,null,null,null,null,null,6.02,7,0,0]
[null,null,null,null,null,null,null,null,null,null,null,null,null,7.31,8.5,0,0]
[null,null,null,null,null,null,null,null,null,null,null,null,null,0,0,0,0]
[null,null,null,null,null,null,null,null,null,null,null,null,null,0,0,0,0]
[null,null,null,null,null,null,null,null,null,null,null,null,null,0,0,0,0]
["TIME","TIME","TIME","SWEETS",null,null,null,null,null,null,null,null,"PCS","PRICE/PC (VAT 0)","PRICE/PC (VAT 14)","€","€"]
[null,null,null,null,null,null,null,null,null,null,null,null,null,{"$f":"0.86*O35","v":2.58},3,{"$f":"M35*N35","v":0},{"$f":"M35*O35","v":0}]
[null,null,null,null,null,null,null,null,null,null,null,null,null,1.72,2,0,0]
[null,null,null,null,null,null,null,null,null,null,null,null,null,3.87,4.5,0,0]
[null,null,null,null,null,null,null,null,null,null,null,null,null,6.02,7,0,0]
[null,null,null,null,null,null,null,null,null,null,null,null,null,6.02,7,0,0]
[null,null,null,null,null,null,null,null,null,null,null,null,null,1.29,1.5,0,0]
[null,null,null,null,null,null,null,null,null,null,null,null,null,0,0,0,0]
[null,null,null,null,null,null,null,null,null,null,null,null,null,0,0,0,0]
[null,null,null,null,null,null,null,null,null,null,null,null,null,0,0,0,0]
[null,null,null,null,null,null,null,null,null,null,null,null,null,0,null,0,0]
[null,null,null,null,null,null,null,null,null,null,null,null,null,0,0,0,0]
[null,null,null,null,null,null,null,null,null,null,null,null,null,0,0,0,0]
[null,null,null,null,null,null,null,null,null,null,null,null,null,0,0,0,0]
["TIME","TIME","TIME","OTHER",null,null,null,null,null,null,null,null,"PCS","PRICE/PC (VAT 0)","PRICE/PC (VAT 14)","€","€"]
[null,null,null,"Smoothie",null,null,null,null,null,null,null,null,null,{"$f":"0.86*O49","v":4.7299999999999995},5.5,{"$f":"M49*N49","v":0},{"$f":"M49*O49","v":0}]
[null,null,null,"Chopped fruits",null,null,null,null,null,null,null,null,null,3.87,4.5,0,0]
[null,null,null,"Lunch buffet in Antell´s restaurang",null,null,null,null,null,null,null,null,null,9.3740000000000006,10.9,0,0]
[null,null,null,null,null,null,null,null,null,null,null,null,null,0,0,0,0]
[null,null,null,null,null,null,null,null,null,null,null,null,null,0,0,0,0]
["Dietary requirements and restrictions:"]
[]
["Additional information:"]
["Could you inform at restaurant staff if you will eat at the Antell´s restaurang.",null,null,null,null,null,null,null,null,null,null,null,null,null,"TOTAL:"]
[null,null,null,null,null,null,null,null,null,null,"NET (vat 0)",null,null,null,null,{"$f":"SUM(P10:P53)","v":0}]
[null,null,null,null,null,null,null,null,null,null,"VAT (14%)",null,null,null,null,{"$f":"P60-P58","v":0}]
[null,null,null,null,null,null,null,null,null,null,"Total including VAT (14%)",null,null,null,null,{"$f":"SUM(Q10:Q53)","v":0}]